[Event "*** Titled Tuesday Blitz"]
[Site "Chess.com"]
[Date "2021.02.02"]
[Round "2"]
[White "Msb2"]
[Black "Natalya_Buksa"]
[Result "1-0"]
[WhiteElo "2898"]
[BlackElo "2568"]
[TimeControl "180+1"]
[EndTime "10:19:45 PST"]
[Termination "Msb2 won by resignation"]

1. d4 {[%clk 0:03:00.9]} 1... d5 {[%clk 0:02:59.5]} 2. Nc3 {[%clk 0:03:00.3]}
2... e6 {[%clk 0:02:58.5]} 3. Bf4 {[%clk 0:02:56.9]} 3... Nf6 {[%clk 0:02:58.6]}
4. Nb5 {[%clk 0:02:56.2]} 4... Na6 {[%clk 0:02:59.1]} 5. e3 {[%clk 0:02:54.5]}
5... c6 {[%clk 0:02:58.8]} 6. Nc3 {[%clk 0:02:55]} 6... Bb4 {[%clk 0:02:59.1]}
7. Bxa6 {[%clk 0:02:54.7]} 7... bxa6 {[%clk 0:03:00]} 8. Nf3 {[%clk 0:02:55.1]}
8... a5 {[%clk 0:02:52.5]} 9. O-O {[%clk 0:02:54.7]} 9... Ba6 {[%clk 0:02:52.5]}
10. Re1 {[%clk 0:02:55.2]} 10... Ne4 {[%clk 0:02:51.6]} 11. Nxe4 {[%clk
0:02:47.1]} 11... dxe4 {[%clk 0:02:49.8]} 12. Nd2 {[%clk 0:02:46.1]} 12... Bxd2
{[%clk 0:02:49.4]} 13. Qxd2 {[%clk 0:02:47]} 13... O-O {[%clk 0:02:49.3]} 14.
Qc3 {[%clk 0:02:41.8]} 14... Rc8 {[%clk 0:02:49.1]} 15. a4 {[%clk 0:02:33.1]}
15... Qd5 {[%clk 0:02:46.1]} 16. Qc5 {[%clk 0:02:25.1]} 16... Qxc5 {[%clk
0:02:00.4]} 17. dxc5 {[%clk 0:02:26]} 17... Rfd8 {[%clk 0:02:00.5]} 18. Bd6
{[%clk 0:02:24.2]} 18... f6 {[%clk 0:01:58.6]} 19. b3 {[%clk 0:02:20.6]} 19...
Kf7 {[%clk 0:01:57.4]} 20. f3 {[%clk 0:02:16.1]} 20... exf3 {[%clk 0:01:56.4]}
21. gxf3 {[%clk 0:02:17]} 21... e5 {[%clk 0:01:56.9]} 22. Kf2 {[%clk 0:02:12.2]}
22... Rd7 {[%clk 0:01:54.8]} 23. e4 {[%clk 0:02:11.2]} 23... Rcd8 {[%clk
0:01:52]} 24. h4 {[%clk 0:02:10.3]} 24... Bc8 {[%clk 0:01:50.1]} 25. Ke3 {[%clk
0:02:03.4]} 25... Rb7 {[%clk 0:01:50.2]} 26. Rg1 {[%clk 0:02:02.2]} 26... Be6
{[%clk 0:01:48.3]} 27. Raf1 {[%clk 0:02:00.9]} 27... Re8 {[%clk 0:01:22.2]} 28.
h5 {[%clk 0:01:56.7]} 28... Rb4 {[%clk 0:01:20.5]} 29. Bc7 {[%clk 0:01:52.4]}
29... Rb7 {[%clk 0:01:11.6]} 30. Bxa5 {[%clk 0:01:51.4]} 30... g5 {[%clk
0:01:05.3]} 31. hxg6+ {[%clk 0:01:50.6]} 31... hxg6 {[%clk 0:01:06.2]} 32. Rh1
{[%clk 0:01:47.5]} 32... Kg7 {[%clk 0:01:03.9]} 33. f4 {[%clk 0:01:41.2]} 33...
Bg4 {[%clk 0:00:27.5]} 34. Bc3 {[%clk 0:01:38.3]} 34... Rf7 {[%clk 0:00:23.2]}
35. fxe5 {[%clk 0:01:36.2]} 35... fxe5 {[%clk 0:00:23.1]} 36. Rh7+ {[%clk
0:01:33.8]} 36... Kxh7 {[%clk 0:00:22.4]} 37. Rxf7+ {[%clk 0:01:34.7]} 37... Kh6
{[%clk 0:00:22.8]} 38. Rxa7 {[%clk 0:01:33.2]} 38... Bd1 {[%clk 0:00:23.2]} 39.
a5 {[%clk 0:01:18.2]} 39... Bxc2 {[%clk 0:00:22.6]} 40. Rb7 {[%clk 0:01:18.8]}
40... Ra8 {[%clk 0:00:20.6]} 41. b4 {[%clk 0:01:17.7]} 41... Ba4 {[%clk
0:00:20.4]} 42. Bxe5 {[%clk 0:01:17.4]} 42... Re8 {[%clk 0:00:18.7]} 43. Kd4
{[%clk 0:01:14.6]} 43... Bb5 {[%clk 0:00:17.9]} 44. Rxb5 {[%clk 0:00:59.7]}
44... cxb5 {[%clk 0:00:17.5]} 45. c6 {[%clk 0:01:00.6]} 45... g5 {[%clk
0:00:17.6]} 46. c7 {[%clk 0:01:00.8]} 46... g4 {[%clk 0:00:18.1]} 47. Kd5 {[%clk
0:01:00.5]} 47... Kg5 {[%clk 0:00:15.1]} 48. Bg3 {[%clk 0:01:00.6]} 48... Kf6
{[%clk 0:00:12.1]} 49. Kd6 {[%clk 0:00:58.8]} 49... Kf7 {[%clk 0:00:12]} 50. Kd7
{[%clk 0:00:57.8]} 50... Re7+ {[%clk 0:00:12]} 51. Kc8 {[%clk 0:00:58.3]} 51...
Rxe4 {[%clk 0:00:11.9]} 52. Kb8 {[%clk 0:00:58.2]} 52... Re8+ {[%clk 0:00:05]}
53. c8=Q {[%clk 0:00:58.4]} 53... Rxc8+ {[%clk 0:00:04.9]} 54. Kxc8 {[%clk
0:00:59.3]} 54... Ke6 {[%clk 0:00:04.9]} 55. a6 {[%clk 0:00:59.7]} 1-0

[Event "*** Titled Tuesday Blitz"]
[Site "Chess.com"]
[Date "2021.02.02"]
[Round "2"]
[White "Sergienko_Sergey"]
[Black "Flawless_Fighter"]
[Result "0-1"]
[WhiteElo "2390"]
[BlackElo "2690"]
[TimeControl "180+1"]
[EndTime "10:19:45 PST"]
[Termination "Flawless_Fighter won by resignation"]

1. e4 {[%clk 0:02:57.3]} 1... c6 {[%clk 0:02:59.6]} 2. Nc3 {[%clk 0:02:56]} 2...
d5 {[%clk 0:03:00.5]} 3. Nf3 {[%clk 0:02:55]} 3... Bg4 {[%clk 0:03:01.1]} 4. h3
{[%clk 0:02:54.4]} 4... Bxf3 {[%clk 0:03:00.7]} 5. Qxf3 {[%clk 0:02:53.8]} 5...
e6 {[%clk 0:03:01.6]} 6. d3 {[%clk 0:02:53.2]} 6... Nd7 {[%clk 0:03:01.3]} 7. a3
{[%clk 0:02:51.9]} 7... Ngf6 {[%clk 0:03:00.1]} 8. g3 {[%clk 0:02:51.6]} 8...
Be7 {[%clk 0:02:55.5]} 9. Bg2 {[%clk 0:02:50.5]} 9... O-O {[%clk 0:02:55.5]} 10.
O-O {[%clk 0:02:50.1]} 10... Rc8 {[%clk 0:02:52.1]} 11. Qe2 {[%clk 0:02:48.4]}
11... Bc5 {[%clk 0:02:49.4]} 12. Kh1 {[%clk 0:02:44.5]} 12... g6 {[%clk
0:02:32.3]} 13. e5 {[%clk 0:02:25.2]} 13... Nh5 {[%clk 0:02:29.5]} 14. g4 {[%clk
0:02:17.4]} 14... Ng7 {[%clk 0:02:27.5]} 15. f4 {[%clk 0:02:09.2]} 15... f6
{[%clk 0:02:23.5]} 16. exf6 {[%clk 0:02:02.9]} 16... Qxf6 {[%clk 0:02:23]} 17.
Bd2 {[%clk 0:01:59.7]} 17... Rce8 {[%clk 0:02:22.2]} 18. Rae1 {[%clk 0:01:57.4]}
18... Bd4 {[%clk 0:02:20]} 19. Nd1 {[%clk 0:01:29.6]} 19... e5 {[%clk
0:02:05.9]} 20. fxe5 {[%clk 0:01:26.9]} 20... Qxe5 {[%clk 0:02:05.9]} 21. Rxf8+
{[%clk 0:01:22.4]} 21... Rxf8 {[%clk 0:01:57.8]} 22. c3 {[%clk 0:01:12.2]} 22...
Qxe2 {[%clk 0:01:55]} 23. Rxe2 {[%clk 0:01:12.4]} 23... Bc5 {[%clk 0:01:54.6]}
24. d4 {[%clk 0:00:51.6]} 24... Bd6 {[%clk 0:01:54.7]} 25. Nf2 {[%clk 0:00:45]}
25... Nb6 {[%clk 0:01:50.1]} 26. Kg1 {[%clk 0:00:39.5]} 26... Nc4 {[%clk
0:01:50]} 27. Bc1 {[%clk 0:00:39.5]} 27... a5 {[%clk 0:01:43.5]} 28. Nd3 {[%clk
0:00:39.2]} 28... a4 {[%clk 0:01:43.1]} 29. Rf2 {[%clk 0:00:33.8]} 29... Rf7
{[%clk 0:01:39.4]} 30. Rxf7 {[%clk 0:00:32.6]} 30... Kxf7 {[%clk 0:01:40.3]} 31.
Kf2 {[%clk 0:00:32.3]} 31... Ne8 {[%clk 0:01:34.4]} 32. Ke2 {[%clk 0:00:24.9]}
32... Nf6 {[%clk 0:01:33.3]} 33. Nf2 {[%clk 0:00:24]} 33... Ke6 {[%clk
0:01:31.9]} 34. Kd3 {[%clk 0:00:22.3]} 34... h5 {[%clk 0:01:21.5]} 35. Bf3
{[%clk 0:00:20.5]} 35... h4 {[%clk 0:01:16]} 36. g5 {[%clk 0:00:17.9]} 36... Nd7
{[%clk 0:01:06.3]} 37. Bg4+ {[%clk 0:00:17.7]} 37... Ke7 {[%clk 0:01:07]} 38.
Nd1 {[%clk 0:00:16.6]} 38... b5 {[%clk 0:01:03.9]} 39. Ne3 {[%clk 0:00:15.9]}
39... Bf4 {[%clk 0:00:53.2]} 40. Bxd7 {[%clk 0:00:13]} 40... Kxd7 {[%clk
0:00:47.8]} 41. Nxc4 {[%clk 0:00:12.8]} 41... bxc4+ {[%clk 0:00:35.6]} 42. Kc2
{[%clk 0:00:12.2]} 42... Bxc1 {[%clk 0:00:36.1]} 43. Kxc1 {[%clk 0:00:12.3]}
43... Ke6 {[%clk 0:00:36.8]} 44. Kd2 {[%clk 0:00:09.5]} 44... Kf5 {[%clk
0:00:37.1]} 45. Ke3 {[%clk 0:00:09.6]} 45... Kxg5 {[%clk 0:00:37.2]} 0-1

[Event "*** Titled Tuesday Blitz"]
[Site "Chess.com"]
[Date "2021.02.02"]
[Round "2"]
[White "BairaKovanova"]
[Black "Sanyura"]
[Result "0-1"]
[WhiteElo "2486"]
[BlackElo "2711"]
[TimeControl "180+1"]
[EndTime "10:19:47 PST"]
[Termination "Sanyura won on time"]

1. e4 {[%clk 0:03:00.9]} 1... c5 {[%clk 0:02:59.5]} 2. Nf3 {[%clk 0:03:00.5]}
2... e6 {[%clk 0:02:59.7]} 3. d3 {[%clk 0:03:00.2]} 3... Nc6 {[%clk 0:02:59.4]}
4. g3 {[%clk 0:03:00]} 4... g6 {[%clk 0:02:59.5]} 5. Bg2 {[%clk 0:03:00]} 5...
Bg7 {[%clk 0:02:59.9]} 6. O-O {[%clk 0:03:00.3]} 6... Nge7 {[%clk 0:03:00.3]} 7.
c3 {[%clk 0:02:57]} 7... d5 {[%clk 0:03:00.1]} 8. Qe2 {[%clk 0:02:57]} 8... b6
{[%clk 0:03:00.1]} 9. Re1 {[%clk 0:02:55.1]} 9... a5 {[%clk 0:02:56.3]} 10. e5
{[%clk 0:02:46.9]} 10... Qc7 {[%clk 0:02:56.2]} 11. a4 {[%clk 0:02:46.5]} 11...
Ba6 {[%clk 0:02:52.7]} 12. Na3 {[%clk 0:02:46.2]} 12... h6 {[%clk 0:02:52]} 13.
Nb5 {[%clk 0:02:42]} 13... Bxb5 {[%clk 0:02:51.7]} 14. axb5 {[%clk 0:02:42.3]}
14... Nb8 {[%clk 0:02:50.9]} 15. h4 {[%clk 0:02:30.2]} 15... Nd7 {[%clk
0:02:50.3]} 16. c4 {[%clk 0:02:30.1]} 16... Rd8 {[%clk 0:02:45.2]} 17. Bf4
{[%clk 0:02:28.4]} 17... d4 {[%clk 0:02:41.2]} 18. Qd2 {[%clk 0:02:10.9]} 18...
g5 {[%clk 0:02:02.8]} 19. hxg5 {[%clk 0:02:07.8]} 19... hxg5 {[%clk 0:02:02.8]}
20. Nxg5 {[%clk 0:01:18.6]} 20... Bxe5 {[%clk 0:02:02.1]} 21. Bxe5 {[%clk
0:00:45.1]} 21... Nxe5 {[%clk 0:02:03]} 22. Ne4 {[%clk 0:00:43.7]} 22... N7g6
{[%clk 0:01:57]} 23. Qg5 {[%clk 0:00:41.1]} 23... Nxd3 {[%clk 0:01:18.5]} 24.
Nf6+ {[%clk 0:00:40.9]} 24... Kf8 {[%clk 0:01:18.8]} 25. Rxe6 {[%clk 0:00:30.2]}
25... fxe6 {[%clk 0:01:05.2]} 26. Qxg6 {[%clk 0:00:29.9]} 26... Ne5 {[%clk
0:01:04.3]} 27. Qg5 {[%clk 0:00:25.6]} 27... Nf7 {[%clk 0:01:03.9]} 28. Qg4
{[%clk 0:00:14.5]} 28... Qe5 {[%clk 0:01:01.9]} 29. Ne4 {[%clk 0:00:12.6]} 29...
Qf5 {[%clk 0:01:01.3]} 30. Qe2 {[%clk 0:00:11.8]} 30... d3 {[%clk 0:01:01.4]}
31. Qe3 {[%clk 0:00:11.9]} 31... Ne5 {[%clk 0:00:59.5]} 32. f4 {[%clk
0:00:07.5]} 32... Ng4 {[%clk 0:00:59.2]} 33. Qf3 {[%clk 0:00:07]} 33... d2
{[%clk 0:00:58.2]} 34. Rd1 {[%clk 0:00:06.1]} 34... Nh2 {[%clk 0:00:33]} 35. Qe3
{[%clk 0:00:04.7]} 35... e5 {[%clk 0:00:25]} 36. Ng5 {[%clk 0:00:03.5]} 36...
Qc2 {[%clk 0:00:21.3]} 37. Ne6+ {[%clk 0:00:02.5]} 37... Ke7 {[%clk 0:00:21.6]}
0-1

[Event "*** Titled Tuesday Blitz"]
[Site "Chess.com"]
[Date "2021.02.02"]
[Round "2"]
[White "Monmoransy"]
[Black "IngOscarArdila"]
[Result "1-0"]
[WhiteElo "2616"]
[BlackElo "2230"]
[TimeControl "180+1"]
[EndTime "10:19:48 PST"]
[Termination "Monmoransy won by resignation"]

1. e4 {[%clk 0:03:00.9]} 1... e5 {[%clk 0:02:55.3]} 2. Nf3 {[%clk 0:02:59.9]}
2... Nf6 {[%clk 0:02:55.7]} 3. Nxe5 {[%clk 0:02:58.5]} 3... d6 {[%clk 0:02:56]}
4. Nf3 {[%clk 0:02:59]} 4... Nxe4 {[%clk 0:02:56.5]} 5. d3 {[%clk 0:02:59.6]}
5... Nf6 {[%clk 0:02:56.6]} 6. d4 {[%clk 0:03:00.3]} 6... Be7 {[%clk 0:02:57.3]}
7. Bd3 {[%clk 0:02:59.7]} 7... O-O {[%clk 0:02:58.2]} 8. O-O {[%clk 0:02:59.8]}
8... Bg4 {[%clk 0:02:57.4]} 9. c3 {[%clk 0:02:58.1]} 9... Nbd7 {[%clk
0:02:56.7]} 10. Re1 {[%clk 0:02:58]} 10... Re8 {[%clk 0:02:56]} 11. Bg5 {[%clk
0:02:56.7]} 11... c6 {[%clk 0:02:54.8]} 12. Nbd2 {[%clk 0:02:56]} 12... h6
{[%clk 0:02:49.9]} 13. Bf4 {[%clk 0:02:52.9]} 13... Nd5 {[%clk 0:02:46.5]} 14.
Bg3 {[%clk 0:02:50.7]} 14... N7f6 {[%clk 0:02:41.9]} 15. h3 {[%clk 0:02:48.7]}
15... Bh5 {[%clk 0:02:23.7]} 16. Qc2 {[%clk 0:02:46.9]} 16... Bf8 {[%clk
0:01:55.4]} 17. Bh2 {[%clk 0:02:46.1]} 17... Rxe1+ {[%clk 0:01:47.8]} 18. Rxe1
{[%clk 0:02:44.8]} 18... Ne7 {[%clk 0:01:44.4]} 19. Nh4 {[%clk 0:02:33.4]} 19...
Qd7 {[%clk 0:01:35.5]} 20. Nf5 {[%clk 0:02:20.3]} 20... Nxf5 {[%clk 0:00:59.3]}
21. Bxf5 {[%clk 0:02:19.1]} 21... Re8 {[%clk 0:00:19.1]} 22. Re3 {[%clk
0:01:41.8]} 22... Rxe3 {[%clk 0:00:18.2]} 23. fxe3 {[%clk 0:01:42.7]} 23... Qe8
{[%clk 0:00:17.8]} 24. Kf2 {[%clk 0:01:37.8]} 24... Bg6 {[%clk 0:00:17.4]} 25.
Bxg6 {[%clk 0:01:34.7]} 25... fxg6 {[%clk 0:00:17.7]} 26. Qb3+ {[%clk
0:01:29.5]} 26... Qf7 {[%clk 0:00:16.1]} 27. Qxf7+ {[%clk 0:01:25.8]} 27... Kxf7
{[%clk 0:00:17]} 28. e4 {[%clk 0:01:24.5]} 28... d5 {[%clk 0:00:14.4]} 29. Ke3
{[%clk 0:01:20.8]} 29... dxe4 {[%clk 0:00:13.8]} 30. Nxe4 {[%clk 0:01:20.7]}
30... Nxe4 {[%clk 0:00:13.9]} 31. Kxe4 {[%clk 0:01:20.9]} 31... Ke6 {[%clk
0:00:14.7]} 32. c4 {[%clk 0:01:20.3]} 32... a6 {[%clk 0:00:12.1]} 33. a4 {[%clk
0:01:18.8]} 33... g5 {[%clk 0:00:11.9]} 34. g4 {[%clk 0:01:18]} 34... Bb4 {[%clk
0:00:11.3]} 35. b3 {[%clk 0:01:15.5]} 35... g6 {[%clk 0:00:10.5]} 36. Be5 {[%clk
0:01:13.2]} 36... Be7 {[%clk 0:00:08.9]} 37. Bg7 {[%clk 0:01:10.9]} 37... h5
{[%clk 0:00:08.8]} 38. Be5 {[%clk 0:01:07.6]} 38... Bd8 {[%clk 0:00:05.1]} 39.
b4 {[%clk 0:01:07]} 39... b5 {[%clk 0:00:02.4]} 40. d5+ {[%clk 0:01:03.1]} 40...
cxd5+ {[%clk 0:00:01.5]} 41. cxd5+ {[%clk 0:01:03.3]} 41... Kd7 {[%clk
0:00:02.4]} 42. axb5 {[%clk 0:00:59.2]} 42... axb5 {[%clk 0:00:03.3]} 43. Bd4
{[%clk 0:00:58.2]} 43... Be7 {[%clk 0:00:03.8]} 44. Bc5 {[%clk 0:00:58]} 44...
Bd6 {[%clk 0:00:04.4]} 45. Bxd6 {[%clk 0:00:54.6]} 45... Kxd6 {[%clk 0:00:04.3]}
46. Kd4 {[%clk 0:00:54.8]} 46... hxg4 {[%clk 0:00:04.4]} 47. hxg4 {[%clk
0:00:54.1]} 47... Ke7 {[%clk 0:00:04.7]} 48. Kc5 {[%clk 0:00:52.8]} 48... Kf6
{[%clk 0:00:05.6]} 49. d6 {[%clk 0:00:51.5]} 49... Ke5 {[%clk 0:00:06.5]} 50. d7
{[%clk 0:00:50.5]} 50... Ke6 {[%clk 0:00:07.4]} 51. Kc6 {[%clk 0:00:49.6]} 51...
Ke5 {[%clk 0:00:05.6]} 1-0

[Event "*** Titled Tuesday Blitz"]
[Site "Chess.com"]
[Date "2021.02.02"]
[Round "2"]
[White "MaevskiyNikolay"]
[Black "jefferyx"]
[Result "0-1"]
[WhiteElo "2588"]
[BlackElo "2969"]
[TimeControl "180+1"]
[EndTime "10:19:50 PST"]
[Termination "jefferyx won by checkmate"]

1. d4 {[%clk 0:02:59.6]} 1... Nf6 {[%clk 0:03:00.2]} 2. c4 {[%clk 0:02:59.5]}
2... c5 {[%clk 0:03:00.6]} 3. d5 {[%clk 0:02:58.8]} 3... b5 {[%clk 0:03:01.4]}
4. cxb5 {[%clk 0:02:57.9]} 4... a6 {[%clk 0:03:02.2]} 5. bxa6 {[%clk 0:02:52.8]}
5... g6 {[%clk 0:03:02.7]} 6. Nc3 {[%clk 0:02:51.5]} 6... Bxa6 {[%clk
0:03:03.4]} 7. Nf3 {[%clk 0:02:48.8]} 7... d6 {[%clk 0:03:03.3]} 8. g3 {[%clk
0:02:49.1]} 8... Bg7 {[%clk 0:03:03.7]} 9. Bg2 {[%clk 0:02:49.6]} 9... O-O
{[%clk 0:03:04.5]} 10. O-O {[%clk 0:02:49.7]} 10... Nbd7 {[%clk 0:03:05.2]} 11.
Rb1 {[%clk 0:02:46.3]} 11... Nb6 {[%clk 0:03:00.9]} 12. Nh4 {[%clk 0:02:46.1]}
12... Qd7 {[%clk 0:02:59.8]} 13. Re1 {[%clk 0:02:45]} 13... Rfb8 {[%clk
0:02:59.8]} 14. Bd2 {[%clk 0:02:38.6]} 14... Nc4 {[%clk 0:02:59.9]} 15. b3
{[%clk 0:02:28.5]} 15... Nxd2 {[%clk 0:03:00.2]} 16. Qxd2 {[%clk 0:02:28.6]}
16... Qb7 {[%clk 0:02:54.9]} 17. e4 {[%clk 0:02:21.5]} 17... Ng4 {[%clk
0:02:54.9]} 18. Nf3 {[%clk 0:02:15.2]} 18... Qb4 {[%clk 0:02:51.6]} 19. Rbc1
{[%clk 0:02:13.3]} 19... Bh6 {[%clk 0:02:45.5]} 20. Qc2 {[%clk 0:01:47.1]} 20...
Bxc1 {[%clk 0:02:46.4]} 21. Rxc1 {[%clk 0:01:46.5]} 21... c4 {[%clk 0:02:46.4]}
22. bxc4 {[%clk 0:01:40.8]} 22... Bxc4 {[%clk 0:02:47.3]} 23. h3 {[%clk
0:01:40]} 23... Ne5 {[%clk 0:02:47.5]} 24. Nxe5 {[%clk 0:01:38.2]} 24... dxe5
{[%clk 0:02:48.4]} 25. Qd2 {[%clk 0:01:31.4]} 25... Rc8 {[%clk 0:02:42]} 26. Rc2
{[%clk 0:01:31.2]} 26... Ra3 {[%clk 0:02:38.5]} 27. Nd1 {[%clk 0:01:16.9]} 27...
Qxd2 {[%clk 0:02:37.5]} 28. Rxd2 {[%clk 0:01:17.1]} 28... Rxa2 {[%clk
0:02:38.4]} 29. Rxa2 {[%clk 0:01:15]} 29... Bxa2 {[%clk 0:02:39.3]} 30. Ne3
{[%clk 0:01:14.1]} 30... Rc1+ {[%clk 0:02:40.2]} 31. Kh2 {[%clk 0:01:14.1]}
31... h5 {[%clk 0:02:37.5]} 32. Bf3 {[%clk 0:01:12.8]} 32... Kg7 {[%clk
0:02:36.1]} 33. Kg2 {[%clk 0:01:13.1]} 33... Bb3 {[%clk 0:02:33.6]} 34. Be2
{[%clk 0:01:12.3]} 34... Kf6 {[%clk 0:02:27.8]} 35. h4 {[%clk 0:01:12.2]} 35...
Ra1 {[%clk 0:02:21.4]} 36. Bf3 {[%clk 0:01:00.2]} 36... Ra4 {[%clk 0:02:21.1]}
37. Kf1 {[%clk 0:00:57.8]} 37... Ba2 {[%clk 0:02:21.2]} 38. Nd1 {[%clk
0:00:53.6]} 38... Bb3 {[%clk 0:02:06.1]} 39. Ne3 {[%clk 0:00:51.5]} 39... Ba2
{[%clk 0:02:05.2]} 40. Nd1 {[%clk 0:00:51.4]} 40... Rd4 {[%clk 0:01:57.6]} 41.
Nc3 {[%clk 0:00:48.4]} 41... Bc4+ {[%clk 0:01:54.7]} 42. Be2 {[%clk 0:00:47]}
42... e6 {[%clk 0:01:35]} 43. dxe6 {[%clk 0:00:38]} 43... Kxe6 {[%clk
0:01:35.9]} 44. f3 {[%clk 0:00:34.7]} 44... f5 {[%clk 0:01:36]} 45. Kf2 {[%clk
0:00:31]} 45... Bxe2 {[%clk 0:01:22.2]} 46. Kxe2 {[%clk 0:00:30.1]} 46... Rb4
{[%clk 0:01:19.8]} 47. Nd5 {[%clk 0:00:28]} 47... Rb2+ {[%clk 0:01:17.4]} 48.
Kf1 {[%clk 0:00:27]} 48... Rb3 {[%clk 0:01:18.3]} 49. Ke2 {[%clk 0:00:26.9]}
49... Kd6 {[%clk 0:01:15.7]} 50. Ne3 {[%clk 0:00:21]} 50... fxe4 {[%clk
0:01:15.5]} 51. fxe4 {[%clk 0:00:19.6]} 51... Kc5 {[%clk 0:01:15.9]} 52. Nd5
{[%clk 0:00:19.3]} 52... Kd4 {[%clk 0:01:15.7]} 53. Ne7 {[%clk 0:00:19.3]} 53...
Rxg3 {[%clk 0:01:14.9]} 54. Kf2 {[%clk 0:00:18.6]} 54... Rg4 {[%clk 0:01:15.2]}
55. Kf3 {[%clk 0:00:17.5]} 55... Rf4+ {[%clk 0:01:15.4]} 56. Kg3 {[%clk
0:00:17.4]} 56... Kxe4 {[%clk 0:01:16.3]} 57. Nc8 {[%clk 0:00:12.9]} 57... Rg4+
{[%clk 0:01:17.2]} 58. Kh3 {[%clk 0:00:13]} 58... Kf3 {[%clk 0:01:17.3]} 59. Ne7
{[%clk 0:00:11.6]} 59... e4 {[%clk 0:01:17.2]} 60. Nc6 {[%clk 0:00:12]} 60... e3
{[%clk 0:01:17.2]} 61. Ne5+ {[%clk 0:00:12.5]} 61... Kf2 {[%clk 0:01:12.9]} 62.
Nd3+ {[%clk 0:00:11.7]} 62... Kf1 {[%clk 0:01:12.5]} 63. Kh2 {[%clk 0:00:09.1]}
63... e2 {[%clk 0:01:11.8]} 64. Nf2 {[%clk 0:00:09]} 64... Kxf2 {[%clk
0:01:10.6]} 65. Kh3 {[%clk 0:00:09.3]} 65... Rf4 {[%clk 0:01:09.3]} 66. Kh2
{[%clk 0:00:10.2]} 66... Rxh4# {[%clk 0:01:10.2]} 0-1

[Event "*** Titled Tuesday Blitz"]
[Site "Chess.com"]
[Date "2021.02.02"]
[Round "2"]
[White "SanQui14"]
[Black "KRSilva"]
[Result "1-0"]
[WhiteElo "2436"]
[BlackElo "2206"]
[TimeControl "180+1"]
[EndTime "10:19:50 PST"]
[Termination "SanQui14 won by resignation"]

1. d4 {[%clk 0:03:00.9]} 1... g6 {[%clk 0:02:58.6]} 2. c4 {[%clk 0:03:00.8]}
2... Bg7 {[%clk 0:02:59.5]} 3. Nc3 {[%clk 0:03:01]} 3... d6 {[%clk 0:02:59.3]}
4. Nf3 {[%clk 0:03:00.9]} 4... Nd7 {[%clk 0:02:57.5]} 5. Bf4 {[%clk 0:02:58.5]}
5... c5 {[%clk 0:02:51.8]} 6. e3 {[%clk 0:02:58.4]} 6... Ngf6 {[%clk 0:02:50.4]}
7. Bd3 {[%clk 0:02:57.9]} 7... O-O {[%clk 0:02:50.8]} 8. h3 {[%clk 0:02:57.9]}
8... b6 {[%clk 0:02:50.7]} 9. O-O {[%clk 0:02:57.8]} 9... Bb7 {[%clk 0:02:51.2]}
10. d5 {[%clk 0:02:56.5]} 10... a6 {[%clk 0:02:49.8]} 11. a4 {[%clk 0:02:54.8]}
11... h6 {[%clk 0:02:26.2]} 12. Qd2 {[%clk 0:02:53.1]} 12... g5 {[%clk 0:02:20]}
13. Bh2 {[%clk 0:02:52.7]} 13... Ne8 {[%clk 0:02:18.8]} 14. e4 {[%clk
0:02:43.1]} 14... Ne5 {[%clk 0:02:04.9]} 15. Bxe5 {[%clk 0:02:33.6]} 15... dxe5
{[%clk 0:02:05.8]} 16. Ra3 {[%clk 0:02:10.5]} 16... Nd6 {[%clk 0:02:03.6]} 17.
Rb3 {[%clk 0:02:09.6]} 17... Rb8 {[%clk 0:02:00.8]} 18. Ne1 {[%clk 0:01:45]}
18... e6 {[%clk 0:01:47.9]} 19. Nc2 {[%clk 0:01:39.8]} 19... exd5 {[%clk
0:01:46.2]} 20. exd5 {[%clk 0:01:33.6]} 20... f5 {[%clk 0:01:45]} 21. Re1 {[%clk
0:01:26.7]} 21... Qf6 {[%clk 0:01:38.3]} 22. Rxb6 {[%clk 0:01:20.4]} 22... Nxc4
{[%clk 0:01:00.6]} 23. Rxf6 {[%clk 0:01:19.1]} 23... Nxd2 {[%clk 0:01:00.7]} 24.
Rxf5 {[%clk 0:01:17.4]} 24... c4 {[%clk 0:00:39.2]} 25. Rxf8+ {[%clk 0:01:12.2]}
25... Rxf8 {[%clk 0:00:39.4]} 26. Bf1 {[%clk 0:01:11.9]} 26... Rc8 {[%clk
0:00:32.3]} 27. Ne3 {[%clk 0:01:00.2]} 27... e4 {[%clk 0:00:21.3]} 28. Rd1
{[%clk 0:00:49.9]} 28... Nb3 {[%clk 0:00:20.9]} 29. Bxc4 {[%clk 0:00:47.8]}
29... Nd4 {[%clk 0:00:19.2]} 30. b3 {[%clk 0:00:38.4]} 30... Nxb3 {[%clk
0:00:17.2]} 31. Nxe4 {[%clk 0:00:35.5]} 31... Nd4 {[%clk 0:00:15.8]} 32. Ba2
{[%clk 0:00:25.6]} 32... Kf8 {[%clk 0:00:15.2]} 33. Nd6 {[%clk 0:00:23.2]} 33...
Rc7 {[%clk 0:00:15.2]} 34. Nef5 {[%clk 0:00:16.7]} 34... Be5 {[%clk 0:00:13.2]}
35. Nxd4 {[%clk 0:00:16.2]} 35... Bxd4 {[%clk 0:00:12.2]} 36. Rxd4 {[%clk
0:00:15.6]} 36... Rc1+ {[%clk 0:00:11.6]} 37. Kh2 {[%clk 0:00:16]} 37... Bc8
{[%clk 0:00:10.6]} 38. Nxc8 {[%clk 0:00:15.9]} 38... Rxc8 {[%clk 0:00:10.8]} 39.
d6 {[%clk 0:00:16.8]} 39... Rd8 {[%clk 0:00:11]} 40. d7 {[%clk 0:00:17.3]} 40...
Ke7 {[%clk 0:00:11.6]} 41. Bc4 {[%clk 0:00:17]} 1-0